bitfinex-derivatives/quotes_BTCF0:USTF0_20250709
["timestamp","ask_amount","ask_price","bid_price","bid_amount"]
[1752093265375,0.06198503,110940.0,110930.0,2.00054385]
[1752093265579,0.06198503,110940.0,110930.0,2.51054385]
[1752093265985,0.02618568,110940.0,110930.0,2.51054385]
[1752093266280,0.02018568,110940.0,110930.0,2.51054385]
[1752093266490,0.02118568,110940.0,110930.0,2.51354385]
[1752093266678,0.05648616,110940.0,110930.0,2.51354385]
[1752093266985,0.05648663,110940.0,110930.0,2.51354385]
[1752093267186,0.02118568,110940.0,110930.0,4.01354385]
[1752093268280,0.02118568,110940.0,110930.0,3.736949]
[1752093268482,0.02118568,110940.0,110930.0,4.01354385]
[1752093268687,0.56182033,110960.0,110950.0,0.1802166]
[1752093268988,0.56182033,110960.0,110950.0,2.13557145]
[1752093269177,0.56182033,110960.0,110950.0,2.29637145]
[1752093269380,0.02081993,110960.0,110950.0,2.29637145]
[1752093269886,0.02281993,110960.0,110950.0,2.29737145]
[1752093270084,0.02281993,110960.0,110950.0,2.3013645]
[1752093270288,0.02281993,110960.0,110950.0,2.6921645]
[1752093270486,0.004,110960.0,110950.0,2.6921645]
[1752093270685,0.002,110970.0,110960.0,0.1802004]
[1752093270990,0.002,110970.0,110960.0,1.34823525]
[1752093271782,0.7359027,110990.0,110980.0,0.1801679]
[1752093271983,0.7359027,110990.0,110980.0,1.8458479]
[1752093272283,0.6142643,110990.0,110980.0,1.9488679]
[1752093272483,0.7087195,111000.0,110990.0,0.1801517]
[1752093272687,0.7880195,111000.0,110990.0,0.2601517]
[1752093272989,0.1801517,110990.0,110980.0,0.8984436]
[1752093273179,0.1801517,110990.0,110980.0,1.2634855]
[1752093273180,0.97254655,110990.0,110980.0,1.2634855]
[1752093273382,0.61174655,110990.0,110980.0,1.2184436]
[1752093273583,0.97254655,110990.0,110980.0,1.2184436]
[1752093273790,0.97254655,110990.0,110980.0,1.2684436]
[1752093274378,0.98254655,110990.0,110980.0,1.2704436]
[1752093274789,1.00109223,110990.0,110980.0,0.5607236]
[1752093274993,1.00109223,110990.0,110980.0,1.1810479]
[1752093275289,0.1802167,110950.0,110940.0,0.2488028]
[1752093275483,0.81761155,110950.0,110940.0,0.3651228]
[1752093275678,0.1802167,110950.0,110940.0,0.5751228]
[1752093275892,0.1802023,110960.0,110950.0,0.1802167]
[1752093276090,0.4215928,110970.0,110960.0,0.1802004]
[1752093276290,0.4215928,110970.0,110960.0,0.3902004]
[1752093276593,1.05898765,110970.0,110960.0,0.3902004]
[1752093277386,0.7823928,110970.0,110960.0,0.66679525]
[1752093277584,0.1801965,110970.0,110960.0,0.74669525]
[1752093277785,0.5409965,110970.0,110960.0,0.82449525]
[1752093278187,0.5409965,110970.0,110960.0,0.61449525]
[1752093278491,0.79608844,110980.0,110970.0,0.1801842]
[1752093278688,0.79608844,110980.0,110970.0,0.2701842]
[1752093278887,0.79608844,110980.0,110970.0,0.3098942]
[1752093279388,0.55999874,110980.0,110970.0,1.61318905]
[1752093279696,0.55999874,110980.0,110970.0,0.4721442]
[1752093279896,0.55999874,110980.0,110970.0,0.4875942]
[1752093280095,0.56699874,110980.0,110970.0,0.4885942]
[1752093280592,0.24106465,110980.0,110970.0,0.3785942]
[1752093280797,0.24106465,110980.0,110970.0,1.00518905]
[1752093280990,0.24106465,110980.0,110970.0,0.7285942]
[1752093281191,0.24406465,110980.0,110970.0,0.7295942]
[1752093282296,0.24406465,110980.0,110970.0,1.00618905]
[1752093283387,0.24406465,110980.0,110970.0,0.7295942]
[1752093283588,0.06388505,110980.0,110970.0,1.00618905]
[1752093283897,0.24405295,110980.0,110970.0,1.00618905]
[1752093284493,0.24405295,110980.0,110970.0,1.01618905]
[1752093285496,0.06388505,110980.0,110970.0,1.03618905]
[1752093285710,0.04486591,110980.0,110970.0,1.03627345]
[1752093286000,0.04419038,110980.0,110970.0,1.03627345]
[1752093286204,0.04419042,110980.0,110970.0,1.03627345]
[1752093286388,0.04419042,110980.0,110970.0,1.39707345]
[1752093286595,0.04419042,110980.0,110970.0,1.6736683]
[1752093286797,0.01,110980.0,110970.0,1.1050286]
[1752093286996,0.01,110980.0,110970.0,1.38162345]
[1752093287694,0.01,110980.0,110970.0,1.1050286]
[1752093287899,0.01,110980.0,110970.0,1.6582183]
[1752093288101,0.5879769,111000.0,110990.0,0.1801517]
[1752093288301,0.66721012,111000.0,110990.0,1.44419655]
[1752093288500,0.66721012,111000.0,110990.0,1.60329655]
[1752093288690,0.62217542,111000.0,110990.0,1.60329655]
[1752093288894,0.26137542,111000.0,110990.0,1.60738948]
[1752093289090,0.2271769,111000.0,110990.0,1.62738948]
[1752093289390,0.2281769,111000.0,110990.0,1.62938948]
[1752093289802,0.1831424,111000.0,110990.0,1.62938948]
[1752093290100,0.1831424,111000.0,110990.0,1.63938948]
[1752093290297,0.5439424,111000.0,110990.0,1.62393948]
[1752093290505,0.5439424,111000.0,110990.0,1.64819948]
[1752093291798,0.1831424,111000.0,110990.0,1.65019948]
[1752093292000,0.1831424,111000.0,110990.0,1.3695117]
[1752093292301,0.5439424,111000.0,110990.0,1.3695117]
[1752093292503,0.5439424,111000.0,110990.0,1.64610655]
[1752093292898,0.003,111000.0,110990.0,1.64610655]
[1752093293303,0.003,111000.0,110990.0,2.30150655]
[1752093293605,0.002,111010.0,111000.0,0.7333252]
[1752093293907,0.03616356,111010.0,111000.0,1.9685352]
[1752093294099,0.55217244,111040.0,111000.0,1.4937997]
[1752093294296,0.55217244,111040.0,111020.0,0.2701342]
[1752093294297,0.5859217,111030.0,111020.0,0.2701342]
[1752093294499,0.98673745,111030.0,111020.0,1.19545333]
[1752093294694,1.14323745,111030.0,111020.0,1.21971333]
[1752093294907,0.78243745,111030.0,111020.0,1.21971333]
[1752093295205,1.14323745,111030.0,111020.0,1.21971333]
[1752093295403,1.14323745,111030.0,111020.0,0.37971]
[1752093295600,1.14323745,111030.0,111020.0,1.00853]
[1752093295800,1.14323745,111030.0,111020.0,0.35545]
[1752093296198,0.180103,111020.0,111010.0,0.2701626]
[1752093296397,1.00416915,111020.0,111010.0,0.3844226]
[1752093296705,0.7275743,111020.0,111010.0,0.3998726]
[1752093296900,0.7275743,111020.0,111010.0,0.67646745]
[1752093297108,0.2142743,111020.0,111010.0,0.95646745]
[1752093297406,0.0341713,111020.0,111010.0,1.11066745]
[1752093297801,0.0381713,111020.0,111010.0,1.47146745]
[1752093298012,0.004,111020.0,111010.0,1.47146745]
[1752093298203,0.03813263,111020.0,111010.0,1.47146745]
[1752093298401,0.005,111020.0,111010.0,1.47146745]
[1752093298708,0.005,111020.0,111010.0,1.6948726]
[1752093298902,0.005,111020.0,111010.0,0.9640726]
[1752093299102,0.2192335,111020.0,111010.0,1.59066745]
[1752093300011,0.0391305,111020.0,111010.0,1.72486745]
[1752093300910,0.0391305,111020.0,111010.0,2.15410987]
[1752093301111,0.005,111020.0,111010.0,2.15410987]
[1752093301411,0.005,111020.0,111010.0,2.65410987]
[1752093302810,0.002,111040.0,111030.0,0.1800868]
[1752093303106,0.21606062,111040.0,111030.0,0.95188782]
[1752093303303,0.03599002,111040.0,111030.0,2.12338782]
[1752093303811,0.03599002,111040.0,111030.0,1.76258782]
[1752093304006,0.03899002,111040.0,111030.0,1.76258782]
[1752093304206,0.03899002,111040.0,111030.0,2.26258782]
[1752093304402,0.03599002,111040.0,111030.0,2.62338782]
[1752093305304,0.03599002,111040.0,111030.0,2.57538782]
[1752093305516,2e-08,111040.0,111030.0,2.57538782]
[1752093305706,0.002,111050.0,111040.0,0.1800706]
[1752093305904,0.002,111050.0,111040.0,1.46397166]
[1752093306506,0.002,111050.0,111040.0,1.53682358]
[1752093307311,0.002,111050.0,111040.0,2.03982358]
[1752093308111,0.002,111050.0,111040.0,1.33398631]
[1752093308307,0.1820543,111050.0,111040.0,1.98790631]
[1752093308610,0.002,111050.0,111040.0,1.60790631]
[1752093308808,0.1820543,111050.0,111040.0,1.27398631]
[1752093309113,0.5428543,111050.0,111040.0,1.92838631]
[1752093309714,0.3628,111050.0,111040.0,1.97838631]
[1752093309902,0.002,111050.0,111040.0,2.32342358]
[1752093310104,0.002,111050.0,111040.0,2.97882358]
[1752093310314,0.62108158,111070.0,111060.0,0.1800381]
[1752093310614,0.5408237,111070.0,111060.0,1.1944581]
[1752093310912,0.88787018,111080.0,111070.0,0.1800219]
[1752093311114,0.88787018,111080.0,111070.0,0.5600219]
[1752093311316,0.88787018,111080.0,111070.0,0.5760919]
[1752093311609,0.88787018,111080.0,111070.0,0.6000819]
[1752093311805,0.88787018,111080.0,111070.0,1.05055]
[1752093311806,1.15264957,111080.0,111070.0,1.05055]
[1752093312005,1.15264957,111080.0,111070.0,1.2305719]
[1752093313117,1.15564957,111080.0,111070.0,1.2305719]
[1752093313818,1.24090745,111080.0,111070.0,1.2305719]
[1752093314018,1.16064957,111080.0,111070.0,1.2305719]
[1752093314222,1.31344258,111080.0,111070.0,1.2306119]
[1752093314422,1.23374819,111080.0,111070.0,1.2306119]
[1752093314622,1.23374819,111080.0,111070.0,0.8506119]
[1752093314914,0.4548123,111080.0,111070.0,1.1706119]
[1752093315114,0.89533712,111080.0,111070.0,1.1706119]
[1752093315508,1.24037439,111080.0,111070.0,0.5160919]
[1752093315713,1.24040604,111080.0,111070.0,0.5160919]
[1752093316018,1.16064957,111080.0,111070.0,0.5160919]
[1752093317018,1.26766008,111080.0,111070.0,0.5160919]
[1752093317220,0.92262281,111080.0,111070.0,0.5160919]
[1752093317421,0.8156123,111080.0,111070.0,0.5160919]
[1752093317624,0.84924435,111080.0,111070.0,0.5160919]
[1752093318016,0.95625486,111080.0,111070.0,0.5160919]
[1752093318217,0.93767106,111080.0,111070.0,0.5160919]
[1752093318419,1.0107881,111080.0,111070.0,0.1960919]
[1752093318718,1.0107881,111080.0,111070.0,0.5660919]
[1752093318927,1.35582537,111080.0,111070.0,0.38607]
[1752093319117,1.35582537,111080.0,111070.0,0.566092]
[1752093319313,1.24881486,111080.0,111070.0,0.566092]
[1752093319710,1.24881486,111080.0,111070.0,0.576092]
[1752093319914,1.35582537,111080.0,111070.0,0.600082]
[1752093320117,1.0107881,111080.0,111070.0,0.576092]
[1752093320412,1.0107881,111080.0,111070.0,0.600082]
[1752093320613,0.90377759,111080.0,111070.0,0.600082]
[1752093320817,1.0107881,111080.0,111070.0,0.600082]
[1752093321021,0.90377759,111080.0,111070.0,0.600082]
[1752093321217,1.0107881,111080.0,111070.0,0.600082]
[1752093322921,0.90377759,111080.0,111070.0,0.600082]
[1752093323326,0.90377759,111080.0,111070.0,0.570082]
[1752093323327,0.93721757,111080.0,111070.0,0.570082]
[1752093323518,0.93721757,111080.0,111070.0,1.06601927]
[1752093323714,0.48434846,111080.0,111070.0,1.06601927]
[1752093323920,0.51098907,111080.0,111070.0,1.06601927]
[1752093324119,0.51098907,111080.0,111070.0,1.02595927]
[1752093324314,0.04363205,111080.0,111070.0,1.41074927]
[1752093324527,0.08992829,111080.0,111070.0,1.04994927]
[1752093324732,0.08992829,111080.0,111070.0,1.44074927]
[1752093324922,0.12356034,111080.0,111070.0,1.44074927]
[1752093325322,0.12356034,111080.0,111070.0,1.94074927]
[1752093325718,0.10747871,111080.0,111070.0,1.94074927]
[1752093325924,0.02098375,111090.0,111080.0,0.1800057]
[1752093326127,0.02098375,111090.0,111080.0,2.71157297]
[1752093327026,0.02298375,111090.0,111080.0,2.71157297]
[1752093327227,0.10655702,111100.0,111090.0,0.1799895]
[1752093327429,0.08140582,111100.0,111090.0,1.64092677]
[1752093327629,0.32366422,111120.0,111110.0,0.1799571]
[1752093327929,0.13602676,111120.0,111110.0,2.19471437]
[1752093328119,0.13602676,111120.0,111110.0,2.26961437]
[1752093328324,0.002,111120.0,111110.0,2.70601437]
[1752093328525,0.13602676,111120.0,111110.0,2.34521437]
[1752093328725,0.13602676,111120.0,111110.0,2.84521437]
[1752093328925,0.13602676,111120.0,111110.0,2.85030245]
[1752093329224,0.002,111120.0,111110.0,3.21110245]
[1752093329420,0.97024216,111130.0,111120.0,0.179941]
[1752093329421,0.3608,111130.0,111120.0,0.179941]
[1752093329624,0.49482676,111130.0,111120.0,1.03726827]
[1752093329821,0.67475156,111130.0,111120.0,0.692231]
[1752093330128,0.57322676,111130.0,111120.0,0.90503827]
[1752093330324,0.49482676,111130.0,111120.0,1.05333827]
[1752093330525,0.67475156,111130.0,111120.0,0.71333827]
[1752093330731,0.67475156,111130.0,111120.0,1.05833827]
[1752093330922,0.13402676,111130.0,111120.0,1.05833827]
[1752093331123,0.59202293,111140.0,111130.0,0.1799248]
[1752093331434,0.69353153,111140.0,111130.0,2.32690207]
[1752093332024,0.51362293,111140.0,111130.0,2.32690207]
[1752093332424,0.15382293,111140.0,111130.0,2.32690207]
[1752093332624,0.15382293,111140.0,111130.0,2.68970207]
[1752093332830,0.01979617,111140.0,111130.0,2.32890207]
[1752093333028,0.01979617,111140.0,111130.0,2.3446648]
[1752093333328,0.90554204,111140.0,111130.0,1.8595548]
[1752093333527,0.71230477,111140.0,111130.0,1.8595548]
[1752093334232,0.35150477,111140.0,111130.0,1.8295548]
[1752093334529,0.71230477,111140.0,111130.0,1.8295548]
[1752093334733,0.71230477,111140.0,111130.0,0.5159148]
[1752093334928,1.05734204,111140.0,111130.0,1.1690448]
[1752093335128,1.1913688,111140.0,111130.0,1.1851148]
[1752093335324,1.1913688,111140.0,111130.0,1.2091048]
[1752093335534,0.84633153,111140.0,111130.0,1.2091048]
[1752093335724,0.69453153,111140.0,111130.0,1.2091048]
[1752093335929,0.51462293,111140.0,111130.0,1.11644242]
[1752093336226,0.01979617,111140.0,111130.0,1.77368242]
[1752093336634,0.001,111140.0,111130.0,1.77368242]
[1752093336927,0.25187773,111140.0,111130.0,0.77140515]
[1752093337128,0.5417085,111140.0,111130.0,1.4122248]
[1752093337328,0.49582676,111140.0,111130.0,1.4122248]
[1752093337530,0.1073589,111140.0,111130.0,2.11806207]
[1752093337732,0.001,111140.0,111130.0,2.11806207]
[1752093338532,0.13502676,111140.0,111130.0,2.11806207]
[1752093338723,0.80478898,111160.0,111150.0,0.1798924]
[1752093339032,0.72877828,111160.0,111150.0,1.57813278]
[1752093339336,0.3628,111160.0,111150.0,1.04339551]
[1752093339630,0.5426762,111160.0,111150.0,1.40339551]
[1752093339833,0.88771347,111160.0,111150.0,0.5103]
[1752093340029,0.1799086,111140.0,111130.0,0.06398358]
[1752093340230,0.71934402,111140.0,111130.0,1.45320888]
[1752093340428,0.71934402,111140.0,111130.0,1.45120888]
[1752093340630,0.71934402,111140.0,111130.0,1.47409888]
[1752093341044,0.71934402,111140.0,111130.0,1.13409888]
[1752093341230,0.71934402,111140.0,111130.0,1.48409888]
[1752093341429,0.35854402,111140.0,111130.0,1.48409888]
[1752093341631,0.07229387,111140.0,111130.0,1.48409888]
[1752093341939,0.1799085,111140.0,111130.0,1.48409888]
[1752093342239,0.780755,111150.0,111140.0,0.1799085]
[1752093342439,0.7357785,111150.0,111140.0,0.5157685]
[1752093342642,0.3608,111150.0,111140.0,1.61781577]
[1752093342834,0.5406923,111150.0,111140.0,1.69181577]
[1752093343230,0.64702987,111150.0,111140.0,0.6884585]
[1752093343430,0.64802987,111150.0,111140.0,0.6884585]
[1752093343632,0.64802987,111150.0,111140.0,1.3466985]
[1752093344140,0.46813757,111150.0,111140.0,1.3466985]
[1752093344540,0.64802987,111150.0,111140.0,1.0266985]
[1752093344843,0.5436923,111150.0,111140.0,0.6984585]
[1752093345039,0.36046704,111150.0,111140.0,1.3566985]
[1752093345342,0.36046704,111150.0,111140.0,0.6984585]
[1752093345535,0.18057474,111150.0,111140.0,1.0265785]
[1752093345739,0.10933757,111150.0,111140.0,1.3665785]
[1752093346243,0.10933757,111150.0,111140.0,1.71161577]
[1752093346542,0.10933757,111150.0,111140.0,2.07241577]
[1752093346943,0.10933757,111150.0,111140.0,3.57241577]
[1752093347239,0.10933757,111150.0,111140.0,3.5241785]
[1752093347240,0.28922987,111150.0,111140.0,3.5241785]
[1752093347436,0.5436923,111150.0,111140.0,3.3665785]
[1752093347630,0.003,111150.0,111140.0,1.8665785]
[1752093347837,0.10936926,111150.0,111140.0,1.8665785]
[1752093348043,0.28926156,111150.0,111140.0,3.3665785]
[1752093348435,0.003,111150.0,111140.0,3.39118507]
[1752093348632,0.002,111150.0,111140.0,4.09702234]
[1752093348836,0.001,111150.0,111140.0,4.09702234]
[1752093349036,0.10736926,111150.0,111140.0,4.09802234]
[1752093349241,0.001,111150.0,111140.0,4.2875681]
[1752093349637,0.001,111150.0,111140.0,3.4267681]
[1752093349838,0.56172944,111160.0,111150.0,0.1798924]
[1752093350146,0.38185124,111160.0,111150.0,0.87066752]
[1752093350739,0.02105124,111160.0,111150.0,0.87066752]
[1752093351042,0.02105124,111160.0,111150.0,1.17570479]
[1752093351245,0.02105124,111160.0,111150.0,0.83045415]
[1752093351747,0.02105124,111160.0,111150.0,0.83046113]
[1752093352046,0.02105124,111160.0,111150.0,0.88398139]
[1752093352740,0.20092744,111160.0,111150.0,0.87439425]
[1752093352943,0.02105124,111160.0,111150.0,1.45563794]
[1752093353146,0.02105124,111160.0,111150.0,0.82391546]
[1752093353147,0.20092744,111160.0,111150.0,0.82391546]
[1752093353347,0.72688851,111160.0,111150.0,0.08427631]
[1752093353548,0.8106511,111130.0,111080.0,0.34021705]
[1752093353843,0.1800058,111080.0,111070.0,0.00180059]
[1752093354042,2.55864034,111080.0,111070.0,0.00180059]
[1752093354254,0.3150576,111070.0,111050.0,0.17074839]
[1752093354542,0.3608,111060.0,111050.0,0.80232264]
[1752093354742,0.3608,111060.0,111050.0,0.54232264]
[1752093354743,0.88587547,111060.0,111050.0,0.54232264]
[1752093354938,0.88587547,111060.0,111050.0,0.04289]
[1752093355138,0.88587547,111060.0,111050.0,0.36289]
[1752093355936,0.5408382,111060.0,111050.0,0.11289]
[1752093356145,0.88587547,111060.0,111050.0,0.11589]
[1752093356340,0.88587547,111060.0,111050.0,0.54949]
[1752093356535,0.88587547,111060.0,111050.0,0.55449]
[1752093356834,0.88617547,111060.0,111050.0,0.26449]
[1752093357434,0.88607547,111060.0,111050.0,0.26449]
[1752093357639,0.88607547,111060.0,111050.0,0.27449]
[1752093358051,0.1800542,111050.0,111040.0,0.00180107]
[1752093358238,0.1800704,111040.0,111030.0,0.01885498]
[1752093358444,0.88620767,111040.0,111030.0,0.32180123]
[1752093358750,1.42604494,111040.0,111030.0,0.06840082]
[1752093358940,1.42604494,111040.0,111030.0,2e-08]
[1752093359140,0.1801028,111020.0,111010.0,0.0773]
[1752093359337,0.61289019,111020.0,111010.0,0.74598425]
[1752093359743,0.61289019,111020.0,111010.0,0.4173]
[1752093359744,0.95792746,111020.0,111010.0,0.4173]
[1752093359949,1.33340746,111020.0,111010.0,0.34]
[1752093360145,1.38880746,111020.0,111010.0,0.2217929]
[1752093360451,1.38880746,111020.0,111010.0,0.2227929]
[1752093360650,1.38880746,111020.0,111010.0,0.1488293]
[1752093360850,1.38880746,111020.0,111010.0,0.341]
[1752093361043,1.38880746,111020.0,111010.0,0.3172443]
[1752093361244,1.38880746,111020.0,111000.0,0.00180172]
[1752093361245,0.1801191,111010.0,111000.0,0.00180172]
[1752093361445,2.22814165,111010.0,111000.0,0.37390172]
[1752093361645,1.8780391,111010.0,111000.0,0.37390172]
[1752093361951,1.8780391,111010.0,111000.0,1.41555051]
[1752093361952,0.1801191,111010.0,111000.0,1.41555051]
[1752093362250,0.1801191,111010.0,111000.0,1.25064854]
[1752093362449,0.1801191,111010.0,111000.0,1.34194854]
[1752093362650,0.1801191,111010.0,111000.0,1.16181324]
[1752093362841,0.5419191,111010.0,111000.0,1.16181324]
[1752093363251,0.5419191,111010.0,111000.0,1.66181324]
[1752093363638,0.001,111010.0,111000.0,2.20274854]
[1752093363838,0.001,111010.0,111000.0,1.84194854]
[1752093364046,0.001,111010.0,111000.0,2.54778581]
[1752093364249,0.2701718,111020.0,111010.0,0.34503727]
[1752093364456,0.1801148,111020.0,111010.0,1.50920785]
[1752093364649,0.1801148,111020.0,111010.0,1.75188686]
[1752093365459,0.1801148,111020.0,111010.0,1.77477686]
[1752093365855,0.1801148,111020.0,111010.0,1.78807499]
[1752093366161,0.1801148,111020.0,111010.0,1.82807499]
[1752093366957,0.1811148,111020.0,111010.0,1.82807499]
[1752093367449,0.1821148,111020.0,111010.0,1.90227499]
[1752093368558,0.5429148,111020.0,111010.0,1.90227499]
[1752093368952,0.5429148,111020.0,111010.0,1.88227499]
[1752093369144,0.5429148,111020.0,111010.0,1.21267499]
[1752093369350,0.88795207,111020.0,111010.0,0.51606347]
[1752093369546,0.88795207,111020.0,111010.0,0.15879813]
[1752093369750,0.88795207,111020.0,111010.0,0.4655]
[1752093369751,0.94335207,111020.0,111010.0,0.4655]
[1752093370257,0.5983148,111020.0,111010.0,0.3942]
[1752093370562,0.5983148,111020.0,111010.0,0.4685]
[1752093371057,0.5983148,111020.0,111010.0,0.4885]
[1752093371962,0.5983148,111020.0,111010.0,0.2485]
[1752093372156,0.5983148,111020.0,111010.0,0.5285]
[1752093372858,0.94335207,111020.0,111010.0,0.324257]
[1752093373073,0.94335207,111020.0,111000.0,0.00180172]
[1752093373074,0.180119,111010.0,111000.0,0.00180172]
[1752093373370,1.63009745,111010.0,111000.0,0.12180172]
[1752093373567,1.81027345,111010.0,111000.0,0.12180172]
[1752093373760,1.46523618,111010.0,111000.0,0.12180172]
[1752093373964,1.22902018,111010.0,111000.0,0.48051478]
[1752093374269,1.22902018,111010.0,111000.0,0.36547751]
[1752093374570,1.23002018,111010.0,111000.0,0.36547751]
[1752093374762,1.23002018,111010.0,111000.0,0.43547751]
[1752093374957,0.56106018,111010.0,111000.0,0.74922779]
[1752093375159,0.56206018,111010.0,111000.0,0.96933423]
[1752093375365,0.56206018,111010.0,111000.0,0.95565844]
[1752093375959,0.56206018,111010.0,111000.0,0.99919843]
[1752093376164,0.56206018,111010.0,111000.0,1.07589843]
[1752093376358,0.02114118,111010.0,111000.0,2.41541843]
[1752093376561,0.20126018,111010.0,111000.0,2.43995843]
[1752093376961,0.20126018,111010.0,111000.0,2.70641844]
[1752093377364,0.56206018,111010.0,111000.0,2.70641844]
[1752093377564,0.56106018,111010.0,111000.0,2.70641844]
[1752093377870,0.56106018,111010.0,111000.0,2.70841844]
[1752093378266,0.56106018,111010.0,111000.0,2.70941844]
[1752093378267,0.19926018,111010.0,111000.0,2.70941844]
[1752093378461,0.01914118,111010.0,111000.0,2.70941844]
[1752093378667,0.19926018,111010.0,111000.0,2.70941844]
[1752093379170,0.19926018,111010.0,111000.0,2.36941844]
[1752093379369,0.56006018,111010.0,111000.0,2.74941844]
[1752093379566,0.56006018,111010.0,111000.0,2.67941844]
[1752093380072,0.19926018,111010.0,111000.0,2.46941844]
[1752093380271,0.19926018,111010.0,111000.0,2.36941844]
[1752093380471,0.19926018,111010.0,111000.0,2.73941844]
[1752093381169,0.19926018,111010.0,111000.0,2.44941844]
[1752093381372,0.19926018,111010.0,111000.0,2.68941844]
[1752093382076,0.56006018,111010.0,111000.0,2.68941844]
[1752093382267,0.61484041,111010.0,111000.0,2.34438117]
[1752093382569,0.61484041,111010.0,111000.0,2.25837593]
[1752093382869,0.61484041,111010.0,111000.0,2.13970597]
[1752093383070,0.61484041,111010.0,111000.0,0.84018597]
[1752093383277,0.61484041,111010.0,111000.0,1.68892117]
[1752093383471,0.61484041,111010.0,111000.0,1.70416117]
[1752093383676,0.59900041,111010.0,111000.0,2.04919844]
[1752093383874,0.41888141,111010.0,111000.0,1.9631932]
[1752093384076,0.41888141,111010.0,111000.0,2.39423571]
[1752093384275,0.41888141,111010.0,111000.0,2.04919844]
[1752093384463,0.03894023,111010.0,111000.0,2.04919844]
[1752093384771,0.03894023,111010.0,111000.0,2.34423571]
[1752093385176,0.03894023,111010.0,111000.0,2.32899571]
[1752093385378,0.03894023,111010.0,111000.0,2.35353571]
[1752093385577,0.03894023,111010.0,111000.0,2.15353571]
[1752093385878,0.03894023,111010.0,111000.0,2.35353571]
[1752093386474,0.03894023,111010.0,111000.0,2.71433571]
[1752093386781,0.66530805,111030.0,111020.0,0.1801028]
[1752093386971,0.44018615,111030.0,111020.0,1.43687814]
[1752093387171,0.5408866,111030.0,111020.0,1.15385715]
[1752093387470,0.5408866,111030.0,111020.0,1.83586627]
[1752093387674,0.1800866,111030.0,111020.0,1.83586627]
[1752093387973,0.1820866,111030.0,111020.0,1.83586627]
[1752093388182,0.5428866,111030.0,111020.0,1.78586627]
[1752093388376,0.1820866,111030.0,111020.0,1.78587378]
[1752093388682,0.5428866,111030.0,111020.0,1.78579378]
[1752093389075,0.1820866,111030.0,111020.0,1.78579378]
[1752093389274,0.5448866,111030.0,111020.0,1.78579378]
[1752093389481,0.1840866,111030.0,111020.0,1.11711378]
[1752093389677,0.1840866,111030.0,111020.0,1.78559378]
[1752093389879,0.5448866,111030.0,111020.0,1.78559378]
[1752093390073,0.5448866,111030.0,111020.0,1.81559378]
[1752093390074,0.004,111030.0,111020.0,1.81559378]
[1752093390275,0.004,111030.0,111020.0,1.80233715]
[1752093390583,0.004,111030.0,111020.0,2.03709715]
[1752093391084,0.004,111030.0,111020.0,2.39789715]
[1752093392677,0.37805012,111050.0,111040.0,0.1800704]
[1752093392879,0.29866397,111050.0,111040.0,1.73061564]
[1752093393186,0.29866397,111050.0,111040.0,2.46073192]
[1752093393585,0.65946397,111050.0,111040.0,2.47073192]
[1752093393777,0.25364997,111050.0,111040.0,2.47073192]
[1752093394279,0.180068,111050.0,111040.0,2.47073192]
[1752093394683,0.180068,111050.0,111040.0,2.43073192]
[1752093395183,0.180068,111050.0,111040.0,2.44480642]
[1752093395388,0.180068,111050.0,111040.0,2.70480642]
[1752093395581,0.180068,111050.0,111040.0,2.45480642]
[1752093395776,0.556708,111050.0,111040.0,2.45480642]
[1752093396681,0.556708,111050.0,111040.0,2.71480642]
[1752093396878,0.556708,111050.0,111040.0,2.46480642]
[1752093397081,0.3608,111050.0,111040.0,2.46480642]
[1752093397589,0.73846706,111060.0,111050.0,0.1800542]
[1752093397882,0.67492091,111060.0,111050.0,0.79514597]
[1752093398081,0.62991061,111060.0,111050.0,1.03782486]
[1752093398279,0.62991061,111060.0,111050.0,1.04782486]
[1752093398888,0.66448287,111060.0,111050.0,1.04782486]
[1752093399186,0.66483287,111060.0,111050.0,1.04782486]
[1752093399689,0.64964287,111060.0,111050.0,1.08384286]
[1752093399877,0.66583287,111060.0,111050.0,1.08384286]
[1752093402690,0.66583287,111060.0,111050.0,1.04782486]
[1752093402886,0.66583287,111060.0,111050.0,1.1338301]
[1752093403180,0.63126061,111060.0,111050.0,0.75901283]
[1752093403385,0.65014039,111060.0,111050.0,0.75901283]
[1752093403782,0.65014039,111060.0,111050.0,0.79826283]
[1752093403984,0.65014039,111060.0,111050.0,0.78215283]
[1752093404590,0.65014039,111060.0,111050.0,0.79826283]
[1752093404888,0.65014039,111060.0,111050.0,0.75826283]
[1752093405282,0.65014039,111060.0,111050.0,1.1033001]
[1752093406092,0.65014039,111060.0,111050.0,0.75826283]
[1752093406389,0.65014039,111060.0,111050.0,1.1033001]
[1752093406690,0.65014039,111060.0,111050.0,0.75826283]
[1752093407187,1.13361355,111060.0,111050.0,0.06407438]
[1752093407388,1.13361355,111060.0,111050.0,0.24412868]
[1752093407689,0.75632039,111060.0,111050.0,0.24412868]
[1752093407890,0.75632039,111060.0,111050.0,0.26023868]
[1752093408085,0.75632039,111060.0,111050.0,0.08018438]
[1752093408388,0.75632039,111060.0,111050.0,0.09018438]
[1752093410389,0.74164039,111060.0,111050.0,0.07407438]
[1752093410697,0.1800543,111050.0,111040.0,1.6449178]
[1752093410881,0.88589157,111050.0,111040.0,0.53293994]
[1752093411083,1.55105157,111050.0,111040.0,0.02666569]
[1752093411388,1.81605557,111050.0,111040.0,0.01611]
[1752093411780,0.1800705,111040.0,111030.0,0.01735541]
[1752093411986,1.00901777,111040.0,111030.0,0.37791262]
[1752093412590,0.6639805,111040.0,111030.0,0.37791262]
[1752093412788,0.6639805,111040.0,111030.0,0.36735541]
[1752093412985,0.6639805,111040.0,111030.0,0.36935541]
[1752093413387,0.6639805,111040.0,111030.0,0.38257666]
[1752093413592,0.6639805,111040.0,111030.0,0.3985158]
[1752093414190,0.6639805,111040.0,111030.0,0.45808235]
[1752093414688,0.6639805,111040.0,111030.0,0.45608235]
[1752093415095,1.00901777,111040.0,111030.0,0.46663973]
[1752093415286,1.00901777,111040.0,111030.0,0.42663973]
[1752093415593,1.0148952,111040.0,111030.0,0.42663973]
[1752093415893,1.0148952,111040.0,111030.0,0.43989213]
[1752093416190,1.0148952,111040.0,111030.0,0.17989107]
[1752093416393,1.6804952,111040.0,111030.0,0.16663973]
[1752093416984,1.6802952,111040.0,111030.0,0.16938781]
[1752093417381,1.6802552,111040.0,111030.0,0.16938781]
[1752093417683,0.1801191,111010.0,111000.0,0.06677722]
[1752093417886,0.1801354,111000.0,110990.0,5e-08]
[1752093418088,0.1801354,111000.0,110970.0,5e-08]
[1752093418089,0.2702551,110980.0,110970.0,5e-08]
[1752093418386,0.1801841,110970.0,110960.0,0.13210237]
[1752093418693,0.89172219,110970.0,110960.0,0.48821237]
[1752093418887,0.89172219,110970.0,110960.0,0.47210237]
[1752093419092,0.94412219,110970.0,110960.0,0.34180237]
[1752093419285,0.97662219,110970.0,110960.0,0.34180237]
[1752093419682,0.97662219,110970.0,110960.0,0.35180237]